bitfinex-derivatives/quotes_ETHF0:USTF0_20241017
["timestamp","ask_amount","ask_price","bid_price","bid_amount"]
[1729177907875,3.37366,2607.1,2607.0,0.38367]
[1729177908682,2.99,2607.1,2606.9,4.163]
[1729177908881,3.37367,2607.1,2607.0,0.38367]
[1729177909192,2.99,2607.3,2606.9,4.163]
[1729177909485,0.38367,2607.1,2607.0,0.38366]
[1729177910386,2.99,2607.3,2606.9,0.9552]
[1729177910581,0.38365,2607.2,2607.1,0.38364]
[1729177911684,3.37361,2607.5,2607.4,0.38361]
[1729177912581,2.99,2607.5,2607.4,0.38361]
[1729177912883,3.3736,2607.5,2607.4,0.38361]
[1729177913396,2.99,2607.5,2607.4,0.38361]
[1729177914275,3.2078,2607.6,2607.3,0.9054]
[1729177914484,3.2078,2607.6,2607.4,0.3836]
[1729177914684,3.59139,2607.6,2607.3,0.9054]
[1729177914877,3.2078,2607.6,2607.4,0.38361]
[1729177915089,3.2078,2607.6,2607.3,0.9054]
[1729177915389,0.38361,2607.5,2607.4,0.38361]
[1729177915582,3.2078,2607.6,2607.3,0.9054]
[1729177915778,0.3836,2607.5,2607.4,0.38361]
[1729177916293,3.2078,2607.6,2607.3,0.9054]
[1729177916493,3.2078,2607.6,2607.5,0.3836]
[1729177916795,7.1248,2607.9,2607.3,1.86447]
[1729177916987,3.917,2607.9,2607.7,0.38356]
[1729177917188,4.30055,2607.9,2607.8,0.38356]
[1729177918587,4.30055,2607.9,2607.7,0.38356]
[1729177918588,0.38356,2607.8,2607.7,0.38356]
[1729177918788,0.38356,2607.8,2607.6,0.38357]
[1729177918987,3.917,2607.9,2607.5,0.9328]
[1729177919191,0.38359,2607.6,2607.5,0.9328]
[1729177919387,0.38359,2607.6,2607.5,1.3164]
[1729177919989,3.37358,2607.7,2607.6,0.38359]
[1729177920187,0.38356,2607.8,2607.5,0.9328]
[1729177920398,3.917,2607.9,2607.8,0.38356]
[1729177920703,0.38354,2607.9,2607.8,0.38355]
[1729177920905,0.38353,2608.0,2607.9,0.38353]
[1729177921091,41.18352,2608.1,2608.0,0.38353]
[1729177921287,0.38354,2608.0,2607.6,1.85137]
[1729177921687,0.38354,2608.0,2607.9,0.38354]
[1729177922198,40.8,2608.1,2607.6,0.8924]
[1729177922399,2.99,2608.0,2607.6,0.8924]
[1729177922705,0.38356,2607.8,2607.7,0.38357]
[1729177922902,0.38357,2607.7,2607.6,0.38358]
[1729177923199,0.38356,2607.8,2607.7,0.38356]
[1729177925102,0.38355,2607.9,2607.8,0.38355]
[1729177925308,2.99,2608.0,2607.5,1.8918]
[1729177925604,0.38355,2607.9,2607.8,0.38355]
[1729177925803,0.38355,2607.9,2607.5,1.8918]
[1729177925804,0.38357,2607.8,2607.7,0.38357]
[1729177926692,2.99,2608.0,2607.5,0.9328]
[1729177926893,0.38355,2607.9,2607.8,0.38355]
[1729177927205,44.0078,2608.1,2608.0,0.38353]
[1729177927404,3.2078,2608.1,2608.0,0.38353]
[1729177927898,4.96858612,2608.5,2608.0,0.38353]
[1729177927899,40.8,2608.4,2608.0,0.38353]
[1729177928100,7.0798,2608.5,2608.0,0.38353]
[1729177928101,3.2078,2608.5,2608.3,0.38348]
[1729177928297,2.99,2608.7,2608.2,0.95875]
[1729177928502,2.99,2608.7,2608.3,0.91]
[1729177928503,0.38343,2608.7,2608.3,0.91]
[1729177928694,0.38343,2608.7,2608.6,0.38343]
[1729177928896,0.38343,2608.7,2608.6,0.38344]
[1729177929407,0.38343,2608.7,2608.3,0.91]
[1729177929408,2.99,2609.0,2608.9,0.38339]
[1729177929607,2.99,2609.0,2608.4,0.95867]
[1729177929608,0.3834,2608.9,2608.4,1.88147]
[1729177929811,0.3834,2608.9,2608.4,0.9228]
[1729177929812,40.8,2608.9,2608.4,0.9228]
[1729177929997,0.38343,2608.7,2608.5,0.38344]
[1729177930201,2.99,2608.6,2608.5,0.38344]
[1729177930505,7.0892,2608.8,2608.3,0.91]
[1729177930803,6.1978,2608.8,2608.3,0.91]
[1729177931101,0.38343,2608.7,2608.5,0.38344]
[1729177931300,0.38343,2608.7,2608.3,0.91]
[1729177931502,6.58122,2608.8,2608.6,0.38343]
[1729177931706,0.38342,2608.7,2608.6,0.38343]
[1729177932506,6.1978,2608.8,2608.3,0.91]
[1729177932897,6.1978,2608.8,2608.5,0.38345]
[1729177932898,0.38343,2608.7,2608.5,0.38345]
[1729177933097,0.38344,2608.7,2608.5,0.38345]
[1729177933302,0.38344,2608.7,2608.3,0.91]
[1729177933303,0.38345,2608.6,2608.3,0.91]
[1729177933514,0.38345,2608.6,2608.5,0.38345]
[1729177933703,6.1978,2608.8,2608.3,0.91]
[1729177933901,0.38344,2608.6,2608.5,0.38345]
[1729177934606,6.1978,2608.8,2608.3,1.8687]
[1729177934607,0.38344,2608.7,2608.3,1.8687]
[1729177934794,6.1978,2608.8,2608.4,0.95868]
[1729177935000,3.2078,2608.8,2608.7,0.38342]
[1729177935302,0.38343,2608.7,2608.6,0.38343]
[1729177935503,0.38343,2608.7,2608.4,0.95868]
[1729177935504,3.2078,2608.8,2608.7,0.38342]
[1729177935809,40.8,2609.0,2608.9,0.38339]
[1729177936006,2.99,2609.3,2609.1,0.38336]
[1729177936202,3.37334,2609.3,2609.1,0.38335]
[1729177936709,40.8,2609.2,2609.1,0.38335]
[1729177937104,6.1978,2609.5,2608.8,5.8602]
[1729177937405,6.1978,2609.5,2609.4,0.38332]
[1729177937406,3.2078,2609.5,2609.4,0.38332]
[1729177937610,0.38331,2609.5,2609.4,0.38332]
[1729177937802,0.38331,2609.5,2609.0,0.95845]
[1729177938002,2.99,2609.4,2609.3,0.38332]
[1729177939606,2.99,2609.4,2609.2,0.38334]
[1729177939607,3.37333,2609.4,2609.2,0.38334]
[1729177939903,2.99,2609.4,2609.3,0.38334]
[1729177940104,3.37333,2609.4,2609.3,0.38334]
[1729177940318,2.99,2609.4,2609.3,0.38334]
[1729177941002,2.99,2609.4,2608.8,5.8602]
[1729177941204,3.37333,2609.4,2609.2,0.38334]
[1729177942011,3.37333,2609.4,2608.9,0.95849]
[1729177942413,3.37333,2609.4,2609.2,0.38334]
[1729177942704,3.37333,2609.4,2608.9,0.95849]
[1729177942905,2.99,2609.4,2609.2,0.38335]
[1729177943101,3.37333,2609.4,2609.2,0.38335]
[1729177943300,2.99,2609.4,2609.2,0.38335]
[1729177943502,3.37333,2609.4,2609.2,0.38335]
[1729177943808,0.38338,2609.0,2608.9,0.38339]
[1729177944013,0.38338,2609.0,2608.8,2.1666]
[1729177944202,0.38339,2608.9,2608.8,1.7832]
[1729177944404,2.99,2608.9,2608.4,0.38346]
[1729177944612,6.1978,2608.9,2608.5,0.38345]
[1729177944909,0.38346,2608.5,2608.4,0.38346]
[1729177945107,41.18346,2608.5,2608.4,0.38346]
[1729177946409,0.95853,2608.8,2608.3,1.7681]
[1729177946410,6.1978,2608.9,2608.3,1.7681]
[1729177946610,0.38345,2608.6,2608.5,0.38344]
[1729177946812,41.18345,2608.6,2608.5,0.38344]
[1729177947517,3.9485,2608.9,2608.5,0.38344]
[1729177947707,3.9485,2608.9,2608.3,1.7681]
[1729177947708,0.38344,2608.7,2608.6,0.38342]
[1729177947908,41.18344,2608.7,2608.6,0.38342]
[1729177948511,0.38344,2608.7,2608.6,0.38342]
[1729177948910,0.38345,2608.6,2608.5,0.38344]
[1729177950409,0.38344,2608.7,2608.6,0.38343]
[1729177951213,40.8,2608.8,2608.3,2.7268]
[1729177951214,40.8,2608.8,2608.3,1.7681]
[1729177951416,0.38347,2608.5,2608.4,0.38345]
[1729177951618,0.38345,2608.6,2608.5,0.38343]
[1729177953219,44.7485,2608.9,2608.4,0.38345]
[1729177953220,0.38347,2608.5,2608.4,0.38345]
[1729177954416,0.95853,2608.8,2608.3,1.7681]
[1729177954621,0.38344,2608.6,2608.5,0.38343]
[1729177956116,0.95853,2608.8,2608.7,0.38341]
[1729177956117,0.38342,2608.8,2608.7,0.38341]
[1729177956321,0.38342,2608.9,2608.8,0.38339]
[1729177957221,0.38345,2608.6,2608.5,0.38343]
[1729177957417,2.99,2608.9,2608.3,1.7681]
[1729177957727,44.0078,2609.0,2607.9,4.28]
[1729177957728,0.38354,2608.0,2607.9,0.38353]
[1729177958023,0.95874,2608.3,2607.8,0.38354]
[1729177958024,0.38355,2607.9,2607.8,0.38354]
[1729177958212,5.7075,2608.2,2607.7,4.9979]
[1729177958413,0.38356,2607.8,2607.7,5.38147]
[1729177961028,3.37356,2607.8,2607.7,3.2078]
[1729177961232,0.38362,2607.4,2607.3,0.38361]
[1729177961532,0.95895,2607.7,2607.0,0.8889]
[1729177961533,2.99,2607.5,2607.0,0.8889]
[1729177961719,2.99,2607.5,2606.9,0.38368]
[1729177961720,0.38369,2607.0,2606.9,0.38368]
[1729177962130,2.99,2607.1,2606.6,2.73793]
[1729177962320,0.38367,2607.1,2607.0,0.38367]
[1729177962829,41.18364,2607.3,2607.2,0.38364]
[1729177963033,0.38362,2607.4,2607.3,0.38362]
[1729177963228,0.38361,2607.5,2607.4,0.38361]
[1729177963632,41.18361,2607.5,2607.4,0.38361]
[1729177964127,3.9404,2607.7,2607.5,0.3836]
[1729177964338,3.9404,2607.7,2607.2,0.9477]
[1729177964339,0.38357,2607.7,2607.6,0.38359]
[1729177964523,3.37357,2607.7,2607.2,0.9477]
[1729177964725,2.99,2607.7,2607.6,0.38359]
[1729177965432,2.99,2607.7,2607.2,0.9477]
[1729177965633,0.38363,2607.3,2607.2,0.9477]
[1729177965943,0.38364,2607.2,2607.1,4.52735]
[1729177966145,0.38364,2607.3,2607.2,0.38364]
[1729177966349,0.38364,2607.2,2607.1,4.52735]
[1729177967035,0.38364,2607.2,2607.1,3.2078]
[1729177970448,0.38364,2607.2,2607.1,3.59146]
[1729177972352,0.38364,2607.3,2607.2,0.38363]
[1729177974249,0.38364,2607.3,2607.1,3.2078]
[1729177974250,3.18177058,2607.7,2607.1,4.16695]
[1729177974455,3.37359,2607.7,2607.6,0.38359]
[1729177976449,2.99,2607.7,2607.6,0.38359]
[1729177976851,5.18455,2607.9,2607.8,0.38356]
[1729177977651,3.37355,2607.9,2607.8,0.38356]
[1729177977853,2.99,2607.9,2607.3,0.9535]
[1729177978051,2.99,2607.5,2607.2,1.8618]
[1729177978257,3.37361,2607.5,2607.4,0.38361]
[1729177979952,0.38363,2607.4,2607.3,0.38362]
[1729177980260,2.99,2607.5,2607.2,2.24543]
[1729177980261,0.38363,2607.3,2607.2,2.24543]
[1729177980851,0.38362,2607.4,2607.3,0.38362]
[1729177982352,0.38363,2607.3,2607.2,2.24543]
[1729177982551,0.38363,2607.3,2607.0,0.38367]
[1729177982552,0.38367,2607.1,2607.0,0.38367]
[1729177982757,0.38368,2607.0,2606.9,0.38368]
[1729177983054,0.38365,2607.2,2607.1,0.38364]
[1729177983655,3.2078,2607.2,2606.5,3.2078]
[1729177983961,3.37373,2606.6,2606.5,3.2078]
[1729177984166,3.37373,2606.6,2606.5,3.59155]
[1729177984453,3.37373,2606.6,2606.5,3.2078]
[1729177984656,3.37373,2606.6,2606.5,3.59155]
[1729177984856,3.37373,2606.6,2606.5,3.2078]
[1729177985062,2.99,2606.6,2606.5,3.2078]
[1729177985263,2.99,2606.6,2606.5,3.59153]
[1729177985264,0.38373,2606.6,2606.5,3.59153]
[1729177985472,0.38373,2606.6,2606.5,3.2078]
[1729177985754,0.38376,2606.4,2606.3,1.7749]
[1729177985960,3.905,2606.6,2606.3,1.7749]
[1729177986259,4.28874,2606.6,2606.5,0.38375]
[1729177986453,2.99,2606.6,2606.5,0.38375]
[1729177988352,6.1978,2606.6,2606.3,0.8861]
[1729177988556,3.37376,2606.4,2606.2,0.38379]
[1729177988760,3.37376,2606.4,2606.0,1.30972]
[1729177988761,0.3838,2606.2,2606.0,1.30972]
[1729177988956,2.99,2606.1,2606.0,1.30972]
[1729177991264,3.37381,2606.1,2606.0,1.30972]
[1729177991668,3.2078,2606.3,2606.0,0.9259]
[1729177991859,3.2078,2606.3,2606.2,0.38379]
[1729177992757,0.38374,2606.6,2606.0,0.9259]
[1729177992963,2.99,2606.6,2606.1,0.38381]
[1729177993158,2.99,2606.6,2606.5,0.38375]
[1729177993564,3.37371,2606.8,2606.7,0.38372]
[1729177993965,2.99,2606.8,2606.7,0.38372]
[1729177995059,2.99,2606.8,2606.7,4.21972]
[1729177995265,2.99,2607.0,2606.9,0.38369]
[1729177997871,0.3837,2606.9,2606.5,4.1604]
[1729177998077,2.99,2606.7,2606.6,0.38372]
[1729177998262,4.16693,2607.2,2606.5,4.1604]
[1729177998468,2.99,2606.8,2606.7,0.38372]
[1729177999773,3.3737,2606.8,2606.7,0.38372]
[1729178001268,3.2078,2607.1,2606.9,0.38367]
[1729178001466,6.1978,2607.1,2606.5,0.9526]
[1729178001672,3.37371,2606.8,2606.7,0.38371]
[1729178001879,0.38373,2606.6,2606.5,1.33634]
[1729178002077,3.37373,2606.6,2606.5,0.9526]
[1729178002380,3.37373,2606.6,2606.5,1.33635]
[1729178002872,0.95927,2606.8,2606.5,0.9526]
[1729178002873,3.37371,2606.8,2606.5,0.9526]
[1729178003177,3.37371,2606.8,2606.7,0.38372]
[1729178003178,3.37372,2606.8,2606.7,0.38372]
[1729178003974,0.38373,2606.6,2606.5,1.33634]
[1729178004681,2.99,2606.6,2605.9,4.20646896]
[1729178004982,0.95931,2606.7,2606.1,0.38379]
[1729178004983,3.3738,2606.2,2606.1,0.38379]
[1729178005572,0.38381,2606.1,2606.0,1.8661]
[1729178005780,0.38381,2606.1,2606.0,2.24992]
[1729178005971,0.38381,2606.1,2606.0,1.8661]
[1729178006180,0.38381,2606.1,2606.0,2.24992]
[1729178010786,0.38381,2606.1,2606.0,1.8661]
[1729178011191,2.99,2606.2,2605.7,0.8992]
[1729178011389,2.99,2606.0,2605.7,0.8992]
[1729178011596,2.99,2606.0,2605.8,0.38384]
[1729178011597,0.38385,2605.9,2605.8,0.38384]
[1729178012990,2.99,2606.2,2605.8,3.8376]
[1729178013189,4.87422,2606.4,2605.7,4.84886]
[1729178013495,0.38381,2606.2,2606.1,0.3838]
[1729178013693,40.8,2606.3,2605.7,1.85886]
[1729178013990,0.38381,2606.1,2606.0,0.38381]
[1729178014389,0.3838,2606.2,2606.1,0.3838]
[1729178014700,44.7148,2606.4,2606.0,0.38382]
[1729178014701,0.38382,2606.1,2606.0,0.38382]
[1729178014888,3.59162,2606.1,2606.0,0.38382]
[1729178015393,3.59161,2606.1,2606.0,0.38382]
[1729178015592,0.38382,2606.0,2605.9,0.38383]
[1729178016396,3.2078,2606.1,2605.5,2.99]
[1729178016691,0.38383,2606.0,2605.9,0.38382]
[1729178017199,80.5878,2606.1,2605.5,2.99]
[1729178017495,0.38382,2606.0,2605.9,0.38383]
[1729178020699,80.5878,2606.1,2605.6,2.78299]
[1729178020896,80.97162,2606.1,2606.0,0.38382]
[1729178021292,80.5878,2606.1,2606.0,0.38382]
[1729178021793,80.97161,2606.1,2606.0,0.38382]
[1729178021987,80.5878,2606.1,2606.0,0.38382]
[1729178022196,80.97161,2606.1,2606.0,0.38382]
[1729178023096,80.97161,2606.1,2605.6,2.78299]
[1729178023097,0.38383,2606.0,2605.9,0.38383]
[1729178023605,80.97161,2606.1,2606.0,0.38382]
[1729178023800,0.38382,2606.0,2605.9,0.38383]
[1729178025514,80.97162,2606.1,2606.0,0.38382]
[1729178025803,80.5878,2606.1,2605.6,2.78299]
[1729178026096,80.97161,2606.1,2606.0,0.38382]
[1729178026499,80.5878,2606.1,2606.0,0.38382]
[1729178026802,80.5878,2606.1,2606.0,4.22142]
[1729178026994,80.5878,2606.1,2606.0,0.38382]
[1729178027301,77.38,2606.1,2606.0,4.22142]
[1729178028395,77.38,2606.1,2606.0,0.38382]
[1729178028599,77.38,2606.1,2606.0,4.22142]
[1729178031108,77.38,2606.1,2606.0,0.38382]
[1729178032007,0.38379,2606.3,2606.2,0.38379]
[1729178033806,3.59159,2606.3,2606.2,0.38379]
[1729178036402,0.3838,2606.2,2606.1,0.38379]
[1729178036600,3.3738,2606.2,2606.1,0.38379]
[1729178038007,0.38383,2606.1,2606.0,0.38381]
[1729178038203,0.38383,2606.1,2605.8,1.8086]
[1729178038408,0.38384,2605.9,2605.8,2.19244]
[1729178042909,4.30983,2606.0,2605.9,0.38384]
[1729178045016,2.99,2606.2,2605.8,1.8086]
[1729178045204,3.2078,2606.3,2606.2,0.38379]
[1729178045408,3.59158,2606.3,2606.2,0.38379]
[1729178045802,0.38381,2606.2,2605.8,5.97602]
[1729178046005,3.37382,2606.1,2606.0,0.38381]
[1729178046510,0.38383,2606.0,2605.9,0.38382]
[1729178046711,0.38387,2605.8,2605.7,0.38385]
[1729178046916,0.38387,2605.8,2605.2,0.089]
[1729178046917,4.7886,2605.9,2605.1,3.2078]
[1729178047216,0.38392,2605.4,2605.3,0.38392]
[1729178047915,0.9214,2605.5,2605.1,5.0639]
[1729178048117,0.8772,2605.4,2605.3,0.38391]
[1729178050709,1.812,2605.5,2605.1,5.0639]
[1729178050911,0.9214,2605.5,2605.4,0.38391]
[1729178051306,3.2078,2605.6,2605.5,0.38389]
[1729178051512,3.59168,2605.6,2605.5,0.38389]
[1729178051818,3.2078,2605.6,2605.5,0.38389]
[1729178052711,4.1187,2605.7,2605.6,0.38388]
[1729178053118,0.9109,2605.7,2605.6,0.38388]
[1729178053428,1.0357,2605.8,2605.3,0.9598]
[1729178053429,0.5103,2605.8,2605.7,0.38387]
[1729178055217,0.5103,2605.8,2605.5,0.4845]
[1729178055426,0.89416,2605.8,2605.7,0.38387]
[1729178057419,0.38387,2605.7,2605.6,0.38387]
[1729178057620,0.89416,2605.8,2605.7,0.38387]
[1729178058923,0.5103,2605.8,2605.7,0.38387]
[1729178059124,77.38,2605.9,2605.8,0.38385]
[1729178060623,72.90504177,2605.9,2605.8,10.22145]
[1729178060826,72.32900647,2605.9,2605.8,10.71675]
[1729178061022,72.32900647,2605.9,2605.8,11.99304529]
[1729178061814,70.45066647,2605.9,2605.8,11.99304529]
[1729178062018,68.67389647,2605.9,2605.8,11.99304529]
[1729178062425,67.00393647,2605.9,2605.8,11.99304529]
[1729178063221,67.00393647,2605.9,2605.8,11.99005543]
[1729178064525,66.22627647,2605.9,2605.8,11.99005543]
[1729178064731,65.41887647,2605.9,2605.8,11.99005543]
[1729178065228,65.41887647,2605.9,2605.8,5.98993194]
[1729178065430,65.41887647,2605.9,2605.8,5.98984999]
[1729178065924,65.41887647,2605.9,2605.8,3.59165]
[1729178066129,65.41887647,2605.9,2605.8,0.38385]
[1729178067831,65.80271647,2605.9,2605.8,0.38385]
[1729178070726,65.80271647,2605.9,2605.5,1.99114]
[1729178070727,65.41887647,2605.9,2605.5,0.5318]
[1729178071038,0.38387,2605.7,2605.6,0.38387]
[1729178071235,0.4827,2605.8,2605.3,0.95981]
[1729178071535,0.88537,2605.7,2605.6,0.38387]
[1729178072140,0.5015,2605.7,2605.6,0.38387]
[1729178072328,0.88537,2605.7,2605.6,0.38387]
[1729178072940,0.5015,2605.7,2605.6,0.38387]
[1729178073135,0.88537,2605.7,2605.6,0.38387]
[1729178073735,0.5015,2605.7,2605.6,0.38387]
[1729178073935,0.88537,2605.7,2605.6,0.38387]
[1729178074748,0.5015,2605.7,2605.6,0.38387]
[1729178079441,65.92037647,2605.7,2605.6,0.38387]
[1729178080449,69.12817647,2605.7,2605.3,3.2078]
[1729178080635,0.3839,2605.5,2605.4,0.3839]
[1729178081044,3.488,2605.6,2605.5,0.38389]
[1729178081045,0.498,2605.6,2605.5,0.38389]
[1729178081834,65.41887647,2605.7,2605.6,0.38388]
[1729178084546,65.80274647,2605.7,2605.6,0.38388]
[1729178084749,0.38389,2605.6,2605.5,0.38388]
[1729178085049,1.5091,2605.6,2605.3,3.2078]
[1729178085235,0.38391,2605.5,2605.4,0.38389]
[1729178085435,1.89299,2605.6,2605.5,0.38389]
[1729178088641,65.41887647,2605.7,2605.3,0.95981]
[1729178088945,65.41887647,2605.7,2605.6,0.38388]
[1729178093744,65.41887647,2605.7,2605.6,13.21148]
[1729178093942,65.41887647,2605.7,2605.6,13.46237738]
[1729178094251,65.41887647,2605.7,2605.6,13.97957738]
[1729178094744,3.2078,2606.4,2606.3,0.38378]
[1729178094945,3.59156,2606.4,2606.3,0.38378]
[1729178095749,3.2078,2606.4,2606.3,0.38378]
[1729178097746,3.59156,2606.4,2606.3,0.38378]
[1729178097954,3.7087,2606.4,2606.3,0.38378]
[1729178100646,3.7087,2606.4,2606.1,1.47672]
[1729178100647,6.6987,2606.4,2606.1,0.5172]
[1729178100849,6.6987,2606.4,2606.2,0.38378]
[1729178100850,0.38379,2606.3,2606.2,0.38378]
[1729178101249,6.6987,2606.4,2605.9,1.0041]
[1729178101439,6.6987,2606.4,2606.1,0.3838]
[1729178101440,0.38381,2606.2,2606.1,0.3838]
[1729178101640,0.38381,2606.2,2606.0,0.38381]
[1729178101641,0.38381,2606.1,2606.0,0.38381]
[1729178101948,0.87251,2606.1,2606.0,0.38381]
[1729178102148,0.4887,2606.1,2606.0,0.38381]
[1729178103954,0.87251,2606.1,2606.0,0.38381]
[1729178104148,0.4887,2606.1,2606.0,0.38381]
[1729178104839,3.7087,2606.4,2606.3,0.38378]
[1729178105043,0.5201,2606.5,2606.1,3.94952]
[1729178105244,0.90033,2606.6,2606.5,0.38375]
[1729178105451,0.5166,2606.6,2606.5,0.38375]
[1729178105753,0.90033,2606.6,2606.5,0.38375]
[1729178105947,0.5166,2606.6,2606.5,0.38375]
[1729178106250,0.90033,2606.6,2606.5,0.38375]
[1729178106446,0.5166,2606.6,2606.5,0.38375]
[1729178106843,0.90033,2606.6,2606.5,0.38375]
[1729178108445,0.38377,2606.4,2606.3,0.38376]
[1729178108645,0.3838,2606.3,2606.2,0.38378]
[1729178108952,0.5089,2606.3,2606.2,0.38378]
[1729178109345,3.59155,2606.5,2606.4,0.38376]
[1729178109545,3.6997,2606.5,2606.4,0.38376]
[1729178109845,3.6997,2606.5,2606.2,0.95948]
[1729178109846,0.5166,2606.6,2606.5,0.38375]
[1729178110054,3.2078,2606.8,2606.4,0.9594]
[1729178110248,3.2078,2606.8,2606.7,0.38372]
[1729178110552,1.36638,2607.0,2606.9,0.38369]
[1729178110749,0.9827,2607.0,2606.5,0.4836]
[1729178110951,4.1905,2607.0,2606.5,0.4836]
[1729178111147,0.3837,2606.9,2606.8,0.38369]
[1729178112549,4.1905,2607.0,2606.5,0.4836]
[1729178112755,0.38371,2606.8,2606.7,0.3837]
[1729178112956,3.37371,2606.8,2606.7,0.3837]
[1729178113154,6.826,2606.8,2606.0,4.70769182]
[1729178113353,3.37379,2606.2,2605.9,1.49989182]
[1729178113652,0.89861,2606.1,2606.0,0.38382]
[1729178113951,0.38383,2606.0,2605.9,0.38383]
[1729178114152,1.5394,2606.1,2605.7,3.2078]
[1729178114359,1.92321,2606.1,2606.0,0.38382]
[1729178114649,1.92321,2606.1,2605.8,0.5029]
[1729178114849,1.92321,2606.1,2606.0,0.38382]
[1729178115056,1.5394,2606.1,2606.0,0.38382]
[1729178115254,0.5148,2606.1,2606.0,0.38382]
[1729178116055,0.89861,2606.1,2606.0,0.38382]
[1729178116653,0.38381,2606.1,2606.0,0.38381]
[1729178116858,1.5078,2606.2,2605.8,0.5029]
[1729178117058,0.38381,2606.1,2606.0,0.38382]
[1729178117648,4.7156,2606.2,2605.8,0.5029]
[1729178117955,5.09939,2606.2,2606.1,0.38381]
[1729178119960,3.2078,2606.2,2606.1,0.38381]
[1729178121957,0.38377,2606.4,2606.3,0.38378]
[1729178122260,3.7038,2606.5,2606.0,0.495]
[1729178122661,4.08756,2606.5,2606.4,0.38376]
[1729178122958,0.95929,2606.8,2606.3,2.99]
[1729178122959,3.2078,2606.8,2606.3,2.99]
[1729178123161,1.0156,2607.0,2606.5,2.99]
[1729178123364,0.86865,2607.2,2607.1,0.38366]
[1729178123660,0.86864,2607.2,2607.1,0.38366]
[1729178123858,0.485,2607.2,2607.1,0.38366]
[1729178124064,4.60704,2607.3,2607.2,0.38364]
[1729178124454,4.60704,2607.3,2606.8,0.95925]
[1729178124455,0.38365,2607.2,2607.1,0.38365]
[1729178125159,0.38365,2607.2,2607.1,0.38364]
[1729178125761,4.2234,2607.3,2606.7,3.9493]
[1729178125958,0.38365,2607.2,2607.1,0.38365]
[1729178126658,0.38365,2607.2,2606.7,0.9593]
[1729178126659,2.99,2607.2,2606.7,0.9593]
[1729178126960,0.5084,2607.1,2607.0,0.38367]
[1729178129271,4.60703,2607.3,2607.2,0.38364]
[1729178129662,3.2078,2607.3,2607.2,0.38364]
[1729178129861,0.9959,2607.6,2607.5,0.3836]
[1729178130068,0.4827,2607.6,2607.5,0.3836]
[1729178130358,0.85946,2607.8,2607.6,0.38358]
[1729178130359,0.38358,2607.7,2607.6,0.38358]
[1729178130964,0.9729,2607.8,2607.7,0.38357]
[1729178131164,1.35646,2607.8,2607.7,0.38357]
[1729178131566,0.38357,2607.7,2607.4,0.5164]
[1729178131868,0.38359,2607.6,2607.5,0.38359]
[1729178132259,0.38359,2607.6,2606.9,0.9592]
[1729178132260,0.38364,2607.3,2607.2,0.38364]
[1729178132467,0.38364,2607.3,2606.8,4.25605]
[1729178132468,0.4721,2607.5,2606.9,1.96723]
[1729178132668,0.38363,2607.3,2607.2,0.38363]
[1729178132863,0.497,2607.4,2606.9,1.008]
[1729178133062,0.497,2607.4,2607.1,0.38366]
[1729178133063,0.87474,2607.2,2607.1,0.38366]
[1729178133866,0.4911,2607.2,2607.1,0.38366]
[1729178134467,0.87474,2607.2,2607.1,0.38366]
[1729178134657,0.4911,2607.2,2607.1,0.38366]
[1729178136168,0.87474,2607.2,2606.9,1.008]
[1729178136368,0.38368,2607.0,2606.9,0.38368]
[1729178136562,3.37366,2607.1,2607.0,0.38367]
[1729178136762,44.17366,2607.1,2607.0,0.38367]
[1729178137771,43.79,2607.1,2606.6,1.0053]
[1729178138073,0.5039,2607.0,2606.9,0.38368]
[1729178138271,0.88757,2607.0,2606.9,0.38368]
[1729178138773,0.87475,2607.2,2607.1,0.38366]
[1729178138975,0.4911,2607.2,2607.1,0.38366]
[1729178139274,3.7117,2607.3,2607.2,0.38364]
[1729178140167,4.09533,2607.3,2607.2,0.38364]
[1729178140367,0.88753,2607.3,2607.2,0.38364]
[1729178140872,0.5039,2607.3,2607.1,0.7689]
[1729178141084,0.5039,2607.3,2607.2,0.38364]
[1729178141373,0.38362,2607.4,2607.3,0.38361]
[1729178141769,0.9574,2607.5,2607.1,0.7689]
[1729178141969,1.34101,2607.5,2607.4,0.38361]
[1729178142571,3.7138,2607.6,2607.1,0.7689]
[1729178142767,3.7138,2607.6,2607.5,0.3836]
[1729178142768,3.2078,2607.6,2607.5,0.3836]
[1729178143665,65.23686105,2607.8,2607.4,4.6688]
[1729178143867,65.23686105,2607.8,2607.7,0.38357]
[1729178144470,65.62042105,2607.8,2607.7,0.38357]
[1729178146777,65.23686105,2607.8,2607.7,0.38357]
[1729178148276,65.62042105,2607.8,2607.7,0.38357]
[1729178150579,78.06126105,2607.8,2606.6,7.3988]
[1729178150773,2.99,2607.3,2606.9,1.4833]
[1729178150973,0.38367,2607.0,2606.9,0.7581]
[1729178151185,2.3242,2607.2,2606.9,0.7581]
[1729178151369,2.70786,2607.2,2607.1,0.38366]
[1729178151771,0.38366,2607.1,2607.0,0.7252]
[1729178152082,0.38366,2607.1,2607.0,0.38366]
[1729178152388,2.3242,2607.2,2606.9,0.7581]
[1729178152685,0.38367,2607.0,2606.9,1.14178]
[1729178152885,2.3242,2607.2,2606.9,0.7581]
[1729178153085,0.38367,2607.1,2607.0,0.38367]
[1729178153582,0.38367,2607.0,2606.9,1.14178]